[Event "76th Montenegro Championship 2024"]
[Site "Podgorica"]
[Date "2024.02.10"]
[Round "5.8"]
[White "Podlesnik, Bogdan"]
[Black "Vujosevic, Vladimir"]
[Result "1/2-1/2"]
[ECO "C49"]
[WhiteElo "2284"]
[BlackElo "2335"]
[Annotator "TA"]
[PlyCount "78"]
[EventDate "2024.02.06"]
[EventType "swiss"]
[EventCountry "MNE"]
[SourceTitle "playchess.com"]
[Source "ChessBase"]
[SourceQuality "1"]
[TimeControl "40/5400+30:1800+30"]

{[%evp 17,78,0,7,0,0,-43,-37,-76,-72,-68,-67,-111,-96,-103,-99,-93,-95,-99,-64,-69,-71,-66,-64,-72,-62,-54,-50,-52,-52,-52,-52,-61,-53,-58,-42,-54,-52,-50,-25,-41,-28,-23,-23,-23,-23,-23,-23,-47,-20,-20,-20,-22,-20,-33,-15,-12,-13,-18,-15,-38,-10,-38,8]} 1. e4 {[%emt 0:01:21]} e5 {[%emt 0:00:30]} 2. Nf3 {[%emt 0:00:20]} Nc6 {[%emt 0:00:23]} 3. Nc3 {[%emt 0:00:05]} Nf6 {[%emt 0:00:21]} 4. Bb5 {[%emt 0:00:08]} Bb4 {[%emt 0:00:34]} 5. O-O {[%emt 0:00:08]} O-O {[%emt 0:00:24]} 6. d3 {[%emt 0:00:03][%cal Bd2d3,Bd3d4][%mdl 32]} Bxc3 {[%emt 0:00:27]} 7. bxc3 {[%emt 0:00:09]} d6 {[%emt 0:00:20]} 8. Re1 {[%emt 0:00:33]} h6 {[%emt 0:01:32]} 9. d4 {[%emt 0:00:13]} Bd7 {[%emt 0:01:13]} 10. Bf1 {[%emt 0:08:37]} Re8 {[%emt 0:02:48]} 11. Qd3 {[%emt 0:05:40]} d5 {[%emt 0:17:50]} 12. Nxe5 {[%emt 0:10:02]} Nxe5 {[%emt 0:01:49]} 13. dxe5 {[%emt 0:00:27]} Rxe5 {[%emt 0:02:25]} 14. f3 {[%emt 0:04:08]} dxe4 {[%emt 0:04:15]} 15. fxe4 {[%emt 0:00:06]} Bc6 {[%emt 0:01:08]} 16. Bf4 {[%emt 0:02:03]} Rxe4 {[%emt 0:00:42]} (16... Bxe4 $2 17. Qxd8+ Rxd8 18. Bxe5 $18) 17. Rxe4 {[%emt 0:03:34]} Bxe4 {[%emt 0:01:23]} 18. Qxd8+ {[%emt 0:00:38]} Rxd8 {[%emt 0:00:15]} 19. Bxc7 {[%emt 0:00:47]} Rd2 {[%emt 0:02:15]} 20. Rc1 {[%emt 0:01:53]} Nd5 {[%emt 0:06:19]} (20... Bxc2 $2 {loses.} 21. Bf4 Rd1 22. Rxc2 $18) 21. Be5 {[%emt 0:00:06]} Rxc2 {[%emt 0:02:19]} 22. Rxc2 {[%emt 0:00:31]} Bxc2 $15 {[%emt 0:00:17][%mdl 4096] Endgame. KBB-KBN} 23. Kf2 {[%emt 0:01:48]} Be4 {[%emt 0:02:12]} 24. a3 {[%emt 0:03:46]} f6 {[%emt 0:06:57]} 25. Bd4 {[%emt 0:00:35]} Nb6 {[%emt 0:00:12]} 26. c4 {[%emt 0:04:03]} Kf7 {[%emt 0:02:08]} 27. g3 {[%emt 0:05:07]} Ke7 {[%emt 0:14:53]} 28. h4 {[%emt 0:04:32]} Nc8 {[%emt 0:05:31]} 29. Bh3 {[%emt 0:02:59]} Nd6 {[%emt 0:01:14]} 30. Bxa7 {[%emt 0:00:45]} Nxc4 {[%emt 0:00:12][%cal Oe7d6]} 31. Bc5+ {[%emt 0:03:47]} Kf7 {[%emt 0:00:16]} 32. Bf1 {[%emt 0:01:40]} Ne5 {[%emt 0:00:11]} 33. Ke3 {[%emt 0:07:38]} Bc6 {[%emt 0:00:21]} 34. Be2 {[%emt 0:00:33]} g6 {[%emt 0:02:45]} 35. Kd4 {[%emt 0:02:13]} Ke6 {[%emt 0:02:50]} 36. Bf8 {[%emt 0:03:46]} h5 {[%emt 0:00:25]} 37. Bh6 {[%emt 0:01:26]} Kf5 {[%emt 0:01:34]} 38. Bf4 {[%emt 0:03:40]} Be4 {[%emt 0:04:19]} 39. Ke3 {[%emt 0:01:12]} g5 {[%emt 0:02:38] Weighted Error Value: White=0.10 (very precise) /Black=0.06 (flawless) .  Mistake:       	---       	Black=1      Inaccurate:     	White=4     	Black=3      OK:         	White=11    	Black=10     Best:        	White=1     	Black=1} (39... Bc2 $15) 1/2-1/2

[Event "76th Montenegro Championship 2024"]
[Site "Podgorica"]
[Date "2024.02.10"]
[Round "5.9"]
[White "Djurovic, Peko"]
[Black "Skvortsova, Alena"]
[Result "1/2-1/2"]
[ECO "B27"]
[WhiteElo "2332"]
[BlackElo "2111"]
[Annotator "RC"]
[PlyCount "110"]
[EventDate "2024.02.06"]
[EventType "swiss"]
[EventCountry "MNE"]
[SourceTitle "playchess.com"]
[Source "ChessBase"]
[SourceQuality "1"]
[TimeControl "40/5400+30:1800+30"]

1. e4 {[%emt 0:00:07]} c5 {[%emt 0:00:36]} 2. Nf3 {[%emt 0:00:20]} g6 {[%emt 0:00:09]} 3. d4 {[%emt 0:00:28]} cxd4 {[%emt 0:00:08]} 4. Qxd4 {[%emt 0:01:06]} Nf6 {[%emt 0:00:11]} 5. e5 {[%emt 0:00:04]} Nc6 {[%emt 0:00:09]} 6. Qa4 {[%emt 0:00:05]} Nd5 {[%emt 0:00:14]} 7. Qe4 {[%emt 0:00:12]} Nb6 {[%emt 0:00:18]} 8. Nc3 {[%emt 0:00:08]} Bg7 {[%emt 0:00:17]} 9. Bf4 {[%emt 0:00:07]} d5 {[%emt 0:00:48]} 10. exd6 {[%emt 0:00:21]} Bf5 {[%emt 0:00:31]} 11. dxe7 {[%emt 0:02:11]} Qd7 {[%emt 0:00:16]} 12. Qe2 {[%emt 0:46:35]} Nb4 {[%emt 0:01:28]} 13. Ne4 {[%emt 0:11:45]} Bxe4 {[%emt 0:43:45]} 14. Qxe4 {[%emt 0:00:31]} Qa4 {[%emt 0:10:32]} 15. Bd3 {[%emt 0:27:11]} Nxd3+ {[%emt 0:01:17]} 16. cxd3 {[%emt 0:00:09]} Bxb2 {[%emt 0:12:28]} 17. Qxa4+ {[%emt 0:01:27]} Nxa4 {[%emt 0:00:22]} 18. Rb1 {[%emt 0:00:04]} Kxe7 {[%emt 0:01:47]} 19. O-O {[%emt 0:00:07]} Rhd8 {[%emt 0:16:33]} 20. Bc1 {[%emt 0:02:28]} Bxc1 {[%emt 0:00:19]} 21. Rxb7+ {[%emt 0:00:04]} Kf6 {[%emt 0:01:28]} 22. Rxc1 {[%emt 0:00:05]} Rxd3 {[%emt 0:00:06]} 23. Rc6+ {[%emt 0:00:45]} Kg7 {[%emt 0:00:17]} 24. Rxf7+ {[%emt 0:02:56]} Kxf7 {[%emt 0:00:06]} 25. Ne5+ {[%emt 0:00:01]} Kg8 {[%emt 0:02:48]} 26. Nxd3 {[%emt 0:00:06]} Rd8 {[%emt 0:00:19]} 27. Ne1 {[%emt 0:00:07]} Nb2 {[%emt 0:03:18]} 28. Kf1 {[%emt 0:03:05]} a5 {[%emt 0:00:06]} 29. Ke2 {[%emt 0:01:03]} Kg7 {[%emt 0:03:02]} 30. f4 {[%emt 0:00:04]} Rd4 {[%emt 0:00:16]} 31. Rc2 {[%emt 0:01:36]} Re4+ {[%emt 0:01:21]} 32. Kd2 {[%emt 0:00:37]} Na4 {[%emt 0:00:30]} 33. g3 {[%emt 0:00:22]} Nb6 {[%emt 0:00:17]} 34. Rc6 {[%emt 0:00:39]} Rb4 {[%emt 0:00:46]} 35. Nd3 {[%emt 0:00:31]} Rb5 {[%emt 0:00:28]} 36. Rc5 {[%emt 0:00:30]} Rb1 {[%emt 0:00:35]} 37. Kc2 {[%emt 0:00:28]} Rh1 {[%emt 0:00:19]} 38. Rxa5 {[%emt 0:00:23]} Rxh2+ {[%emt 0:00:09]} 39. Kc3 {[%emt 0:00:03]} Rg2 {[%emt 0:01:03]} 40. Ra6 {[%emt 0:00:00]} Nd5+ {[%emt 0:00:00]} 41. Kd4 {[%emt 0:02:34]} Ne7 {[%emt 0:00:38]} 42. a4 {[%emt 0:02:45]} Rxg3 {[%emt 0:01:55]} 43. a5 {[%emt 0:01:50]} g5 {[%emt 0:01:41]} 44. Rb6 {[%emt 0:07:21]} gxf4 {[%emt 0:05:12]} 45. a6 {[%emt 0:01:22]} f3 {[%emt 0:07:44]} 46. Ke4 {[%emt 0:06:25]} Nc8 {[%emt 0:05:36]} 47. Rc6 {[%emt 0:04:33]} Rg6 {[%emt 0:01:39]} 48. Rc7+ {[%emt 0:02:35]} Kh6 {[%emt 0:00:08]} 49. Rxc8 {[%emt 0:00:34]} Rxa6 {[%emt 0:00:06]} 50. Kxf3 {[%emt 0:00:03]} Kg5 {[%emt 0:00:53]} 51. Rc5+ {[%emt 0:00:13]} Kf6 {[%emt 0:00:08]} 52. Kg4 {[%emt 0:00:04]} Kg6 {[%emt 0:00:59]} 53. Ne5+ {[%emt 0:00:30]} Kf6 {[%emt 0:00:08]} 54. Kh5 {[%emt 0:00:05]} Ra1 {[%emt 0:00:14]} 55. Ng4+ {[%emt 0:00:05]} Ke6 {[%emt 0:00:06]} 1/2-1/2

[Event "76th Montenegro Championship 2024"]
[Site "Podgorica"]
[Date "2024.02.10"]
[Round "5.10"]
[White "Grbovic, Dino"]
[Black "Draganic, Veljko"]
[Result "0-1"]
[ECO "D11"]
[WhiteElo "1946"]
[BlackElo "2323"]
[Annotator "TA"]
[PlyCount "82"]
[EventDate "2024.02.06"]
[EventType "swiss"]
[EventCountry "MNE"]
[SourceTitle "playchess.com"]
[Source "ChessBase"]
[SourceQuality "1"]
[TimeControl "40/5400+30:1800+30"]

{[%evp 9,82,13,15,27,19,0,-8,0,0,0,0,0,-1,-10,0,-18,4,-34,-25,-31,-31,-28,10,14,21,0,86,21,27,-46,-40,-68,-32,-135,-50,-94,0,-88,0,0,0,0,0,0,30,-112,-109,-115,-112,-203,-175,-169,-148,-191,-195,-220,-246,-215,-258,-221,-247,-259,-239,-289,-282,-279,-270,-255,-233,-6291,-5332,-9999,-6291,-29954,-12846]} 1. d4 {[%emt 0:00:08]} d5 {[%emt 0:04:03]} 2. c4 {[%emt 0:00:09]} c6 {[%emt 0:00:19]} 3. Nf3 {[%emt 0:00:26]} Nf6 {[%emt 0:00:05]} 4. g3 {[%emt 0:00:08]} Bg4 {[%emt 0:00:21]} 5. Ne5 {[%emt 0:00:31]} Bh5 {[%emt 0:00:20]} 6. Qb3 {[%emt 0:03:38]} Qb6 {[%emt 0:01:14]} 7. cxd5 {[%emt 0:03:32]} Qxb3 {[%emt 0:02:34]} 8. axb3 {[%emt 0:00:02] The position is equal.} Nxd5 {[%emt 0:00:13]} 9. g4 {[%emt 0:10:03]} Bg6 {[%emt 0:00:26]} 10. Nxg6 {[%emt 0:01:28]} hxg6 {[%emt 0:00:06]} 11. Bg2 {[%emt 0:02:48]} e6 {[%emt 0:01:49]} 12. e3 {[%emt 0:10:05]} Na6 {[%emt 0:03:25]} 13. O-O {[%emt 0:05:19]} Nab4 {[%emt 0:04:43]} 14. Na3 {[%emt 0:10:30]} Bd6 {[%emt 0:06:54]} 15. h3 {[%emt 0:01:17]} f5 {[%emt 0:01:50]} 16. Nc4 {[%emt 0:07:54]} Bc7 {[%emt 0:01:17]} 17. Rd1 {[%emt 0:14:02]} O-O-O {[%emt 0:08:08]} (17... a5 $11 {remains equal.}) 18. Bd2 {[%emt 0:02:49]} ({White should try} 18. Rxa7 $16 Kb8 19. Ra1) 18... Kb8 $11 {[%emt 0:01:54]} 19. Bxb4 {[%emt 0:03:12]} (19. Kf1 $11) 19... Nxb4 $15 {[%emt 0:00:18]} 20. Rd2 {[%emt 0:05:20]} Rh4 {[%emt 0:05:01]} 21. f3 {[%emt 0:00:53]} (21. Ra4 $15 Nd5 22. Ne5) 21... Rdh8 {[%emt 0:02:18]} (21... f4 $17 {...fxe3 would now be deadly.} 22. exf4 Nd5 (22... Bxf4 23. Re2 $17)) 22. Rad1 {[%emt 0:01:33]} Rd8 {[%emt 0:05:28]} (22... g5 $17) 23. Ne5 {[%emt 0:02:03]} (23. Ra1 $1 $11 {keeps the balance.}) 23... Bxe5 {[%emt 0:02:05]} (23... Nd5 $17 24. Rd3 (24. Nxg6 Rh6 $17) 24... Bxe5 25. dxe5 Re8) 24. dxe5 $11 {[%emt 0:00:02]} Rxd2 {[%emt 0:03:15]} 25. Rxd2 $17 {[%emt 0:00:01][%mdl 4096] Endgame. KRB-KRN} Nd5 $1 {[%emt 0:00:16]} 26. Kf2 {[%emt 0:01:20]} Kc7 {[%emt 0:00:41]} 27. e4 {[%emt 0:02:00] [#]} (27. f4 $11) 27... fxe4 $1 {[%emt 0:00:49]} ({Reject} 27... Nf4 $6 28. Kg3 g5 (28... Nxg2 29. exf5 exf5 30. Kxg2 $18) 29. exf5 $11) 28. fxe4 {[%emt 0:00:01]} Nf4 {[%emt 0:01:00][%cal Og6g5]} 29. Kg3 {[%emt 0:00:20]} (29. b4 $17 {keeps fighting.}) 29... g5 $19 {[%emt 0:00:06]} 30. Bf1 {[%emt 0:03:54]} Rh6 {[%emt 0:03:08]} 31. Rf2 {[%emt 0:01:38][%cal Oh3h4] Threatens to win with h4!} Rh8 {[%emt 0:02:24]} 32. h4 {[%emt 0:02:38] [#]} Rf8 $1 {[%emt 0:00:16]} (32... gxh4+ $2 {perishes.} 33. Kxf4 Rf8+ 34. Ke3 Rxf2 35. Kxf2 $18) (32... Rxh4 $2 {too greedy.} 33. Rxf4 Rh1 34. Rf7+ Kb8 35. Kg2 $18) 33. hxg5 {[%emt 0:03:29]} Ng6 {[%emt 0:00:07]} 34. Rxf8 Nxf8 {[%emt 0:00:00] KB-KN} 35. b4 {[%emt 0:01:53]} a6 {[%emt 0:00:28]} 36. Kf4 {[%emt 0:01:33]} Ng6+ {[%emt 0:00:24]} 37. Ke3 {[%emt 0:00:01]} Nxe5 {[%emt 0:00:12]} 38. Be2 {[%emt 0:00:12]} Kd6 {[%emt 0:00:35]} 39. Bd3 $2 {[%emt 0:02:20]} (39. Kd4) 39... Nxd3 40. Kxd3 {[%emt 0:00:00]} Ke5 {[%emt 0:00:00]} 41. Ke3 {[%emt 0:05:44]} g6 {[%emt 1:12:28] Weighted Error Value: White=0.75/Black=0.17 (very precise) .  Mistake:       	White=7     	Black=4      Inaccurate:     	White=5     	Black=3      OK:         	White=9     	Black=11     Best:        	---       	Black=4      Strong:       	---       	Black=3} 0-1

[Event "76th Montenegro Championship 2024"]
[Site "Podgorica"]
[Date "2024.02.10"]
[Round "5.11"]
[White "Zherebtsova, Alexandra"]
[Black "Nikac, Predrag"]
[Result "1-0"]
[ECO "A43"]
[WhiteElo "2270"]
[BlackElo "2304"]
[Annotator "TA"]
[PlyCount "127"]
[EventDate "2024.02.06"]
[EventType "swiss"]
[EventCountry "MNE"]
[SourceTitle "playchess.com"]
[Source "ChessBase"]
[SourceQuality "1"]
[TimeControl "40/5400+30:1800+30"]

{[%evp 38,126,208,211,210,200,213,206,209,191,223,175,180,210,222,164,215,210,214,211,216,199,247,129,113,0,-2,-87,-87,-89,-86,-90,-92,-90,-85,-92,-86,-77,-76,-132,-37,-54,-37,-79,-74,-70,-60,-52,-39,-72,-19,-47,-50,-38,0,0,0,-12,0,-9,0,0,52,42,398,353,488,454,448,458,747,746,756,758,768,763,704,358,628,308,539,537,794,786,4825,656,4829,4132,29994,29995,29999]} 1. d4 {[%emt 0:07:08]} c5 {[%emt 0:01:47]} 2. d5 {[%emt 0:00:06]} e6 {[%emt 0:00:15]} 3. Nc3 {[%emt 0:00:59]} Nf6 {[%emt 0:00:06]} 4. e4 {[%emt 0:00:55]} exd5 {[%emt 0:00:17]} 5. Nxd5 {[%emt 0:00:24]} Nxd5 {[%emt 0:00:13]} 6. Qxd5 {[%emt 0:00:04]} Be7 {[%emt 0:02:28]} 7. Nf3 {[%emt 0:08:16]} O-O {[%emt 0:00:22]} 8. Bc4 {[%emt 0:02:50]} Nc6 {[%emt 0:01:15]} 9. Bf4 {[%emt 0:14:29]} b5 {[%emt 0:03:29]} 10. Be2 {[%emt 0:01:26]} Qb6 {[%emt 0:03:23]} 11. O-O {[%emt 0:03:09]} d6 {[%emt 0:02:31]} 12. Rfd1 {[%emt 0:03:44]} Bb7 {[%emt 0:02:23]} 13. Qh5 {[%emt 0:02:30]} Rad8 {[%emt 0:15:16]} 14. c3 {[%emt 0:06:13]} c4 {[%emt 0:10:19]} 15. a4 {[%emt 0:09:34]} g6 {[%emt 0:10:08]} 16. Qxb5 {[%emt 0:10:59]} Na5 {[%emt 0:01:05]} 17. Nd2 {[%emt 0:02:50]} Rc8 {[%emt 0:02:46]} 18. Qxb6 {[%emt 0:06:10]} axb6 {[%emt 0:00:03]} 19. Be3 {[%emt 0:01:05]} Bd8 {[%emt 0:00:34]} 20. Bg4 {[%emt 0:01:36]} Ra8 {[%emt 0:03:44]} 21. Bd7 {[%emt 0:01:17]} Bc7 {[%emt 0:00:19]} 22. Bf4 {[%emt 0:03:51]} Ba6 {[%emt 0:02:09]} 23. h3 {[%emt 0:01:05]} Rfd8 {[%emt 0:01:40]} 24. Bg4 {[%emt 0:00:13]} Ra7 {[%emt 0:03:07]} 25. Be2 {[%emt 0:01:42]} Re8 {[%emt 0:00:18]} 26. Bf1 {[%emt 0:02:06]} f6 {[%emt 0:02:19]} (26... Bc8 $142 27. Bxc4 (27. Nxc4 Nxc4 28. Bxc4 Rxe4 $15) 27... Nxc4) 27. Re1 $18 {[%emt 0:01:22]} Kf7 {[%emt 0:01:37]} 28. Rad1 {[%emt 0:00:18]} Ke7 {[%emt 0:05:07]} 29. Nf3 {[%emt 0:00:57]} Nb7 {[%emt 0:01:05]} (29... b5 $142 30. axb5 Bxb5) 30. Rd4 {[%emt 0:04:17]} (30. Nd4 $18 Kd7 31. Nc2) 30... Nc5 $16 {[%emt 0:01:38]} 31. Nd2 {[%emt 0:03:23]} ({White should play} 31. Be3 $16) 31... Ne6 $11 {[%emt 0:00:18]} 32. Bg3 {[%emt 0:00:23]} (32. Be3 $11 {remains equal.} Nxd4 33. Bxd4) 32... Nxd4 $17 {[%emt 0:00:21]} 33. cxd4 {[%emt 0:00:03]} c3 {[%emt 0:00:30]} 34. bxc3 {[%emt 0:00:11]} Bxf1 {[%emt 0:00:08]} 35. Nxf1 {[%emt 0:00:25]} Rxa4 {[%emt 0:00:07]} 36. Ne3 {[%emt 0:00:25]} Kd7 {[%emt 0:02:30]} 37. Nd5 {[%emt 0:01:10]} Bd8 {[%emt 0:07:37]} 38. Rb1 {[%emt 0:01:03]} (38. f3 $142) 38... Ra6 {[%emt 0:06:17]} (38... Rxe4 $17 {White must now prevent ...f5.} 39. Rxb6 Ra1+ 40. Kh2 Bxb6 41. Nxf6+ Kc6 42. Nxe4 d5) 39. f3 $15 {[%emt 0:00:36]} f5 {[%emt 0:00:38]} 40. e5 {[%emt 0:00:00]} g5 {[%emt 0:00:00]} 41. f4 {[%emt 0:02:15]} dxe5 {[%emt 0:03:38]} 42. fxe5 {[%emt 0:01:19]} f4 {[%emt 0:01:56]} 43. Bf2 {[%emt 0:00:42]} Re6 {[%emt 0:02:16]} (43... Ra3 $17) 44. Kf1 {[%emt 0:08:22]} Ra5 {[%emt 0:07:35]} 45. Nb4 $1 {[%emt 0:00:49]} (45. c4 $2 Rc6 46. Rb4 Ra1+ 47. Ke2 Ra2+ 48. Kf3 Rc2 $19) 45... Ra3 {[%emt 0:02:22]} 46. Be1 {[%emt 0:01:29]} h5 {[%emt 0:01:32]} 47. Nd3 {[%emt 0:01:19]} Rc6 {[%emt 0:01:23]} 48. h4 {[%emt 0:06:17]} Rg6 {[%emt 0:00:10]} 49. hxg5 {[%emt 0:01:31]} Bxg5 {[%emt 0:00:54]} (49... Rxg5 $11 50. Bh4 (50. Nxf4 Rf5 $15) 50... Rg8 (50... Rg4 51. e6+ Kxe6 52. Bxd8 $16) 51. Bxd8 Rxc3 52. Nxf4 Rxd8 53. e6+ (53. Nxh5 Kc6 $11) (53. Rxb6 Rf8 $11) 53... Kc6 54. d5+ (54. Nxh5 Re3 $17) 54... Kc7) 50. d5 {[%emt 0:03:50]} Bh6 $2 {[%emt 0:01:40][%mdl 8192]} (50... Be7 $14) 51. e6+ $18 {[%emt 0:01:44]} Kc7 {[%emt 0:01:37]} (51... Kd6 $2 52. Rxb6+ Kxd5 53. Nb4+ Ke5 54. e7 $18) 52. Ne5 {[%emt 0:00:52]} Rg8 {[%emt 0:00:51]} 53. d6+ {[%emt 0:00:35]} Kb7 {[%emt 0:01:31]} (53... Kxd6 $142 54. Nc4+ (54. Rxb6+ $2 Kxe5 55. Rb5+ Kf6 $19) 54... Kxe6 55. Rxb6+ (55. Nxa3 Rb8 $18) 55... Kf5 56. Nxa3 Bg7) 54. Nf7 $18 {[%emt 0:04:30]} Bf8 {[%emt 0:01:46]} 55. e7 {[%emt 0:01:02]} Bxe7 {[%emt 0:00:13]} 56. dxe7 {[%emt 0:00:04]} Kc6 {[%emt 0:00:21]} 57. Bf2 {[%emt 0:02:03]} Kd7 $2 {[%emt 0:01:06]} (57... Re8 58. Ne5+ (58. Bxb6 Rxe7 59. Nd8+ Kd5 $16) (58. Rxb6+ Kc7 $18) 58... Kd5) 58. Bxb6 {[%emt 0:00:31]} (58. Bh4 $142) 58... Rxc3 $2 {[%emt 0:00:44]} (58... f3 {keeps fighting.} 59. Ne5+ (59. gxf3 Rxc3 60. Nh6 Rg6 $14) 59... Kxe7 60. Bc5+ (60. Nxf3 Rxc3 61. Bd4 Rc2 $18) 60... Ke6 61. Bxa3 fxg2+ 62. Kg1 Kxe5) 59. Bd8 $18 {[%emt 0:00:36]} Ke6 {[%emt 0:02:46]} 60. Ng5+ {[%emt 0:00:21]} Kf5 {[%emt 0:01:07]} 61. Nf3 {[%emt 0:00:26]} (61. Rb5+ $142 Kg6 62. Ne4 Rc1+ 63. Kf2) 61... Kg4 {[%emt 0:02:06]} 62. Rb5 {[%emt 0:00:44]} Re3 {[%emt 0:00:55]} 63. Kf2 {[%emt 0:00:16]} h4 {[%emt 0:01:56]} 64. Nh2# {[%emt 0:00:03]} 1-0

[Event "76th Montenegro Championship 2024"]
[Site "Podgorica"]
[Date "2024.02.10"]
[Round "5.12"]
[White "Drasko, Milan"]
[Black "Djukanovic, Sreten"]
[Result "1/2-1/2"]
[ECO "A58"]
[WhiteElo "2339"]
[BlackElo "2068"]
[Annotator "TA"]
[PlyCount "28"]
[EventDate "2024.02.06"]
[EventType "swiss"]
[EventCountry "MNE"]
[SourceTitle "playchess.com"]
[Source "ChessBase"]
[SourceQuality "1"]
[TimeControl "40/5400+30:1800+30"]

{[%evp 9,28,24,29,29,29,29,33,32,51,39,30,43,26,38,47,50,64,74,52,39,24]} 1. d4 {[%emt 0:01:10]} Nf6 {[%emt 0:01:18]} 2. c4 {[%emt 1:30:20]} c5 {[%emt 0:00:09]} 3. d5 {[%emt 0:00:00]} b5 {[%emt 0:00:06]} 4. cxb5 {[%emt 0:00:00]} a6 {[%emt 0:00:19]} 5. bxa6 {[%emt 0:01:30]} e6 {[%emt 0:01:33]} 6. Nc3 {[%emt 0:00:00]} exd5 {[%emt 0:00:25]} 7. Nxd5 {[%emt 0:00:00]} Be7 {[%emt 0:00:11]} 8. Nxe7 {[%emt 0:00:00]} Qxe7 {[%emt 0:00:06]} 9. Bf4 {[%emt 0:00:00] Black must now prevent Bd6.} d5 {[%emt 0:04:10]} 10. e3 {[%emt 0:00:00]} O-O {[%emt 0:02:01]} 11. Nf3 {[%emt 0:00:00]} Nxa6 {[%emt 0:09:04]} 12. Be2 {[%emt 0:00:00]} Bf5 {[%emt 0:10:46]} 13. O-O {[%emt 0:00:00]} Rfd8 {[%emt 0:08:55]} 14. Be5 {[%emt 0:00:00]} Ne4 {[%emt 0:02:46] Weighted Error Value: White=0.02 (flawless) /Black=0.03 (flawless) .  OK:         	White=4     	Black=5} 1/2-1/2

[Event "76th Montenegro Championship 2024"]
[Site "Podgorica"]
[Date "2024.02.10"]
[Round "5.13"]
[White "Lakusic, Zoran"]
[Black "Musovic, Armin"]
[Result "0-1"]
[ECO "A00"]
[WhiteElo "1650"]
[BlackElo "2268"]
[Annotator "NA RC"]
[PlyCount "48"]
[EventDate "2024.02.06"]
[EventType "swiss"]
[EventCountry "MNE"]
[SourceTitle "playchess.com"]
[Source "ChessBase"]
[SourceQuality "1"]
[TimeControl "40/5400+30:1800+30"]

1. a3 {[%emt 0:07:16]} g6 {[%emt 0:00:04]} 2. Nf3 {[%emt 0:00:22]} c5 {[%emt 0:00:26]} 3. g3 {[%emt 0:00:30]} Bg7 {[%emt 0:00:23]} 4. Bg2 {[%emt 0:00:32]} d5 {[%emt 0:01:20]} 5. O-O {[%emt 0:02:08]} Nf6 {[%emt 0:02:17]} 6. d3 {[%emt 0:03:02]} O-O {[%emt 0:00:22]} 7. c3 {[%emt 0:00:41]} Nc6 {[%emt 0:00:25]} 8. Bf4 {[%emt 0:02:30]} Re8 {[%emt 0:01:53]} 9. Be5 {[%emt 0:02:56]} Qb6 {[%emt 0:01:21]} 10. Bxf6 {[%emt 0:06:58]} exf6 {[%emt 0:00:17]} 11. Qc2 {[%emt 0:01:41]} c4 {[%emt 0:04:02]} 12. e3 {[%emt 0:07:49]} Bf5 {[%emt 0:03:44]} 13. Ne1 {[%emt 0:00:47]} cxd3 {[%emt 0:02:28]} 14. Qd2 {[%emt 0:03:27]} Ne5 {[%emt 0:04:01]} 15. Bxd5 {[%emt 0:03:35]} Rad8 {[%emt 0:00:07]} 16. c4 {[%emt 0:11:58]} Bh3 {[%emt 0:01:35]} 17. Nc3 {[%emt 0:09:46]} Bxf1 {[%emt 0:00:23]} 18. Kxf1 {[%emt 0:00:21]} Qb3 {[%emt 0:04:16]} 19. Rb1 {[%emt 0:06:11]} f5 {[%emt 0:01:10]} 20. Qd1 {[%emt 0:03:37]} Qb6 {[%emt 0:05:26]} 21. Nxd3 {[%emt 0:01:15]} Ng4 {[%emt 0:00:29]} 22. c5 {[%emt 0:01:13]} Qa6 {[%emt 0:00:39]} 23. Kg1 {[%emt 0:00:48]} Bxc3 {[%emt 0:00:10]} 24. bxc3 {[%emt 0:00:14]} Rxd5 {[%emt 0:00:14]} 0-1

[Event "76th Montenegro Championship 2024"]
[Site "Podgorica"]
[Date "2024.02.10"]
[Round "5.14"]
[White "Milovic, Jovan"]
[Black "Abramovic, Dragoljub"]
[Result "1-0"]
[ECO "E43"]
[WhiteElo "2223"]
[BlackElo "2018"]
[Annotator "TA"]
[PlyCount "58"]
[EventDate "2024.02.06"]
[EventType "swiss"]
[EventCountry "MNE"]
[SourceTitle "playchess.com"]
[Source "ChessBase"]
[SourceQuality "1"]
[TimeControl "40/5400+30:1800+30"]

{[%evp 13,58,-70,0,-54,-60,-66,-75,-60,-44,-58,-63,-87,10,-81,-55,-57,-34,-42,-45,-71,-65,-76,-51,-45,-70,-54,-43,-51,604,591,579,591,592,556,892,881,902,840,881,870,840,812,893,852,1559,1259,29999]} 1. d4 {[%emt 1:31:00]} e6 {[%emt 0:17:22]} 2. c4 {[%emt 0:00:00]} Bb4+ {[%emt 0:00:20]} 3. Nc3 {[%emt 0:00:00]} Nf6 {[%emt 0:00:07]} 4. e3 {[%emt 0:00:00]} b6 {[%emt 0:00:22]} 5. Bd3 {[%emt 0:00:00]} Bb7 {[%emt 0:00:06]} 6. Nge2 {[%emt 0:00:00]} Bxg2 {[%emt 0:03:08]} 7. Rg1 {[%emt 0:00:00]} Be4 {[%emt 0:00:09]} (7... Bf3 $15) 8. Ng3 {[%emt 0:00:00]} (8. a3 $1 $11 Bxc3+ 9. Nxc3) 8... Bxc3+ $15 {[%emt 0:02:05]} 9. bxc3 {[%emt 0:00:00]} Bxd3 {[%emt 0:01:05]} 10. Qxd3 {[%emt 0:00:00] Black is better.} d6 {[%emt 0:02:36]} 11. e4 {[%emt 0:00:00]} Nbd7 {[%emt 0:03:28]} 12. f4 {[%emt 0:00:00][%cal Bf2f4,Bf4f5][%mdl 32]} c6 {[%emt 0:11:22]} (12... O-O $17) 13. a4 {[%emt 0:00:00]} (13. Ba3 $11 {remains equal.}) 13... g6 {[%emt 0:05:13]} 14. Ra2 {[%emt 0:00:00]} Ng8 {[%emt 0:05:04]} 15. f5 {[%emt 0:00:00]} e5 {[%emt 0:01:32]} 16. a5 {[%emt 0:00:00]} c5 {[%emt 0:09:17]} 17. axb6 {[%emt 0:00:00]} axb6 {[%emt 0:02:32]} 18. Rxa8 {[%emt 0:00:00]} Qxa8 {[%emt 0:00:02]} 19. dxe5 {[%emt 0:00:00]} Nxe5 {[%emt 0:00:53]} 20. Qxd6 {[%emt 0:00:00]} Nf3+ {[%emt 0:00:32][%mdl 8192] Excellent horsemanship. This move loses the game for Black.} (20... Nxc4 $15 21. Qc7 Ne7) 21. Kf2 $18 {[%emt 0:00:00] White is clearly winning.} Nxg1 {[%emt 0:02:21]} 22. Qe5+ {[%emt 0:00:00]} Kd7 {[%emt 0:06:06][%cal Og8e7] [#] Threatens to win with ...Ne7!} 23. Qxh8 {[%emt 0:00:00]} Qa1 {[%emt 0:00:05]} 24. Qxg8 {[%emt 0:00:00]} Qxc1 {[%emt 0:00:02]} 25. Qxf7+ {[%emt 0:00:00] KQN-KQN} Kc6 {[%emt 0:00:09]} 26. Qxh7 {[%emt 0:00:00]} (26. fxg6 Nh3+ 27. Kg2 Nf4+ 28. Kf2 (28. Kf3 Nxg6 29. Qf6+ Kb7 $11) 28... Nh3+ 29. Kg2 Nf4+ 30. Kf3 Nxg6 $11) 26... gxf5 {[%emt 0:00:32]} 27. Qxf5 {[%emt 0:00:00]} Kb7 {[%emt 0:04:28]} 28. Nf1 {[%emt 0:00:00]} Qxc3 {[%emt 0:00:52]} 29. Qd5+ {[%emt 0:00:00]} Ka6 {[%emt 0:00:17] Weighted Error Value: White=0.21 (precise) /Black=0.54.  Loses game:     	---       	Black=1      Mistake:       	White=1     	Black=1      Inaccurate:     	White=1     	Black=2      OK:         	White=4     	Black=8      Best:        	White=3     	Black=1} 1-0